bitfinex-derivatives/quotes_SOLF0:USTF0_20240827
["timestamp","ask_amount","ask_price","bid_price","bid_amount"]
[1724767051597,0.04365193,154.56,154.54,3.2349]
[1724767053599,0.04365193,154.56,154.53,0.04337292]
[1724767054294,0.04365193,154.56,154.55,3.2347]
[1724767056000,0.04365193,154.56,154.54,3.2348]
[1724767056697,0.04365193,154.56,154.53,3.27837292]
[1724767057998,0.04365193,154.56,154.53,0.04337292]
[1724767058202,24.86,154.55,154.53,0.04337292]
[1724767058398,28.0948,154.55,154.53,0.04337292]
[1724767058599,24.86,154.55,154.53,0.04337292]
[1724767058999,3.2349,154.54,154.53,0.04337292]
[1724767059999,3.2349,154.54,154.39,3.23308756]
[1724767060000,29.54,154.54,154.39,3.23308756]
[1724767060201,24.86,154.48,154.39,7.91308756]
[1724767060602,28.0963,154.48,154.39,7.91308756]
[1724767060797,24.86,154.48,154.44,3.237]
[1724767060995,0.04589302,154.48,154.44,0.0456076]
[1724767061896,0.04589302,154.48,154.46,3.2364]
[1724767062908,0.04589302,154.48,154.47,3.2363]
[1724767065106,49.76589302,154.48,154.22,116.66005996]
[1724767065405,49.76589302,154.48,154.17,4.66869991]
[1724767065406,24.86,154.28,154.17,1.2136]
[1724767065604,24.86,154.28,154.19,24.86]
[1724767065605,4.68,154.27,154.19,24.86]
[1724767065808,4.68,154.28,154.19,24.86]
[1724767066006,4.68,154.28,154.17,35.53167192]
[1724767066204,0.04245526,154.24,154.21,0.04344231]
[1724767068009,31.11,154.22,154.21,0.04344231]
[1724767068414,35.79,154.22,154.21,0.04344231]
[1724767068610,0.04245526,154.24,154.21,0.04344231]
[1724767068805,4.68,154.23,154.21,0.04344231]
[1724767069616,4.72245526,154.24,154.21,0.04344231]
[1724767070210,31.11,154.22,154.21,0.04344231]
[1724767071513,35.81,154.22,154.21,0.04344231]
[1724767071817,0.04245526,154.24,154.21,0.04344231]
[1724767072510,31.15245526,154.24,154.21,0.04344231]
[1724767074316,0.04245526,154.24,154.21,0.04344231]
[1724767075521,31.15245526,154.24,154.21,0.04344231]
[1724767076119,31.11,154.22,154.21,0.04344231]
[1724767076514,3.28385526,154.24,154.21,0.04344231]
[1724767076719,7.98385526,154.24,154.21,0.04344231]
[1724767076921,4.74245526,154.24,154.21,0.04344231]
[1724767077221,35.85245526,154.24,154.21,0.04344231]
[1724767077819,31.15245526,154.24,154.21,0.04344231]
[1724767078017,0.04245526,154.24,154.21,0.04344231]
[1724767078724,0.04245526,154.24,154.23,3.2414]
[1724767078923,34.40592823,154.31,154.21,0.04344231]
[1724767079127,4.7,154.29,154.19,31.11]
[1724767079932,0.04832503,154.26,154.22,0.04440549]
[1724767080427,0.04832503,154.26,154.24,3.241]
[1724767081320,0.04832503,154.26,154.25,3.241]
[1724767082824,0.04832503,154.26,154.22,3.28275114]
[1724767083130,31.15832503,154.26,154.22,0.04440549]
[1724767083324,31.11,154.24,154.22,0.04440549]
[1724767083525,31.15832503,154.26,154.22,0.04440549]
[1724767084224,3.2411,154.25,154.22,0.04440549]
[1724767086432,3.2412,154.24,154.22,0.04440549]
[1724767086632,34.3512,154.24,154.22,0.04440549]
[1724767087531,3.241,154.25,154.22,0.04440549]
[1724767088237,34.39912503,154.26,154.22,3.28590549]
[1724767088433,31.15832503,154.26,154.22,0.04440549]
[1724767088822,34.39922503,154.26,154.22,3.28580549]
[1724767089023,0.04832503,154.26,154.22,0.04440549]
[1724767089523,0.04832503,154.26,154.22,3.27376931]
[1724767090241,0.04832503,154.26,154.25,3.241]
[1724767091231,0.04832503,154.26,154.24,3.241]
[1724767092141,0.04832503,154.26,154.25,3.241]
[1724767095732,3.2398,154.31,154.25,3.241]
[1724767095936,4.74,154.32,154.23,32.4351]
[1724767096137,39.13946032,154.34,154.23,32.4351]
[1724767096434,3.24,154.3,154.23,32.4351]
[1724767096840,0.04803524,154.28,154.26,3.2407]
[1724767097039,39.13946032,154.34,154.25,0.04686052]
[1724767097337,0.04978738,154.29,154.25,0.04686052]
[1724767097546,0.04978738,154.29,154.27,3.2404]
[1724767098535,0.04978738,154.29,154.28,3.2403]
[1724767099038,0.04978738,154.29,154.27,3.2405]
[1724767099239,0.04978738,154.29,154.25,0.04686052]
[1724767099645,3.28998738,154.29,154.25,3.28766052]
[1724767099940,0.04978738,154.29,154.25,0.04686052]
[1724767101142,3.28998738,154.29,154.25,3.28776052]
[1724767103638,3.2404,154.28,154.25,3.28776052]
[1724767105038,24.92978738,154.29,154.25,0.04686052]
[1724767105340,0.04978738,154.29,154.25,0.04686052]
[1724767106036,0.04978738,154.29,154.25,24.92686052]
[1724767106241,0.04978738,154.29,154.25,26.24576052]
[1724767107237,0.04978738,154.29,154.28,3.2403]
[1724767111644,26.1172,154.35,154.26,1.2313]
[1724767112349,24.88,154.33,154.26,1.2313]
[1724767112552,0.04909529,154.31,154.28,0.04547781]
[1724767112739,28.1201,154.29,154.28,0.04547781]
[1724767113139,28.1201,154.29,154.19,1.3163]
[1724767113140,24.88,154.29,154.21,1.3159]
[1724767113344,3.2411,154.25,154.21,1.3159]
[1724767113647,24.88,154.25,154.2,59.27136099]
[1724767113838,3.2413,154.24,154.17,6.0159]
[1724767114045,24.88,154.25,154.17,6.0159]
[1724767114239,0.04594687,154.22,154.19,0.0414952]
[1724767114449,0.04594687,154.22,154.2,3.242]
[1724767114851,0.04594687,154.22,154.21,3.2418]
[1724767115153,3.2406,154.27,154.22,3.2506946]
[1724767115447,3.2406,154.27,154.17,6.0159]
[1724767115448,3.2405,154.28,154.23,3.2413]
[1724767115751,3.2405,154.28,154.23,6.4155564]
[1724767116046,0.04247619,154.27,154.24,3.28302999]
[1724767116353,0.04247619,154.27,154.24,0.04192999]
[1724767116549,0.04247619,154.27,154.25,3.241]
[1724767116850,0.04247619,154.27,154.24,0.04192999]
[1724767117149,0.04247619,154.27,154.25,3.241]
[1724767118354,24.88,154.33,154.24,28.13152074]
[1724767118554,29.58,154.35,154.25,1.2161]
[1724767118757,3.2396,154.32,154.27,3.2405]
[1724767119459,0.04378093,154.31,154.28,0.04280141]
[1724767119753,0.04378093,154.31,154.28,3.28300141]
[1724767120749,0.04378093,154.31,154.29,3.2401]
[1724767120954,0.04378093,154.31,154.28,0.04280141]
[1724767121355,0.04378093,154.31,154.28,3.28300141]
[1724767122355,0.04378093,154.31,154.28,0.04280141]
[1724767123252,3.28358093,154.31,154.28,3.28310141]
[1724767124053,0.04378093,154.31,154.28,0.04280141]
[1724767124656,0.04378093,154.31,154.3,3.2399]
[1724767127554,0.04378093,154.31,154.29,3.24]
[1724767128253,0.04378093,154.31,154.28,0.04280141]
[1724767129049,24.92378093,154.31,154.28,0.04280141]
[1724767129255,24.88,154.29,154.28,0.04280141]
[1724767129560,28.1201,154.29,154.28,0.04280141]
[1724767130251,24.88,154.29,154.28,0.04280141]
[1724767130458,6.48393406,154.29,154.28,0.04280141]
[1724767130755,6.48393406,154.3,154.28,0.04280141]
[1724767131356,36.63367817,154.29,154.21,1.2675]
[1724767131556,18.11523077,154.28,154.21,1.2675]
[1724767131762,36.63367817,154.27,154.21,1.2675]
[1724767131962,11.75367817,154.26,154.21,1.2675]
[1724767132163,11.75367817,154.25,154.21,1.2675]
[1724767132357,11.75367817,154.25,154.22,3.2414]
[1724767132358,11.75367817,154.24,154.22,3.2414]
[1724767132555,11.75367817,154.23,154.22,3.2414]
[1724767133159,0.04321109,154.25,154.22,3.2414]
[1724767133361,5.27033444,154.23,154.22,3.2414]
[1724767133656,5.27033444,154.23,154.21,1.31062375]
[1724767133657,11.75537564,154.23,154.21,1.31062375]
[1724767133960,11.75537564,154.22,154.21,1.31062375]
[1724767134957,11.75537564,154.22,154.21,4.55242375]
[1724767135158,5.70157564,154.22,154.21,4.55242375]
[1724767135362,5.70157564,154.22,154.21,9.25242375]
[1724767136059,3.68357564,154.22,154.21,9.25242375]
[1724767136258,1.66557564,154.22,154.21,9.25242375]
[1724767136759,0.04321109,154.25,154.24,3.2412]
[1724767140166,6.40419412,154.25,154.21,0.04312375]
[1724767140364,6.36098303,154.24,154.21,0.04312375]
[1724767140566,0.04321109,154.25,154.22,3.2415]
[1724767140767,6.36171191,154.24,154.22,3.2415]
[1724767141070,6.36166675,154.23,154.22,3.2415]
[1724767141370,0.04321109,154.25,154.21,24.92312375]
[1724767141869,0.04321109,154.25,154.23,24.88]
[1724767142268,6.3613083,154.24,154.23,28.1214]
[1724767142769,0.04321109,154.25,154.24,3.2412]
[1724767144471,0.04321109,154.25,154.22,1.2477]
[1724767144667,0.04321109,154.25,154.21,0.04312375]
[1724767144963,6.36077419,154.24,154.21,0.04312375]
[1724767145163,6.36077419,154.24,154.22,3.2414]
[1724767145363,6.36077419,154.24,154.21,0.04312375]
[1724767145563,6.36077419,154.23,154.21,0.04312375]
[1724767145860,0.04321109,154.25,154.23,3.2414]
[1724767146061,6.36132323,154.24,154.23,3.2414]
[1724767146870,0.04321109,154.25,154.23,3.2414]
[1724767147069,6.36145772,154.24,154.22,3.2415]
[1724767147372,0.04321109,154.25,154.21,0.04312375]
[1724767147373,6.36145772,154.23,154.21,0.04312375]
[1724767147569,0.04321109,154.25,154.21,3.28472375]
[1724767147771,0.04321109,154.25,154.21,0.04312375]
[1724767148069,6.36146767,154.24,154.21,0.04312375]
[1724767148270,12.84651508,154.23,154.21,0.04312375]
[1724767148463,6.36146767,154.22,154.21,0.04312375]
[1724767148668,18.11320601,154.22,154.21,0.04312375]
[1724767150172,6.36146767,154.22,154.21,0.04312375]
[1724767150478,11.75166295,154.22,154.21,0.04312375]
[1724767151079,18.11313062,154.22,154.21,0.04312375]
[1724767151974,11.75166295,154.22,154.21,3.28492375]
[1724767152373,11.75166295,154.22,154.21,0.04312375]
[1724767152965,18.11340398,154.22,154.21,0.04312375]
[1724767153168,11.75166295,154.22,154.21,0.04312375]
[1724767153571,6.48527317,154.22,154.21,0.04312375]
[1724767153967,18.11318842,154.22,154.21,0.04312375]
[1724767155472,11.75143555,154.22,154.21,0.04312375]
[1724767155669,11.75143555,154.22,154.21,3.28492375]
[1724767157376,11.75084454,154.22,154.21,3.28492375]
[1724767160372,11.75084454,154.22,154.21,0.04312375]
[1724767160579,5.26616238,154.22,154.21,0.04312375]
[1724767160975,18.11271083,154.22,154.21,0.04312375]
[1724767162479,18.11271083,154.22,154.15,4.68]
[1724767162784,18.11271083,154.21,154.15,4.68]
[1724767162978,11.75103271,154.2,154.14,4.57242997]
[1724767163172,18.11366699,154.19,154.14,9.25242997]
[1724767163379,11.80002054,154.18,154.15,0.04842649]
[1724767163679,11.75103271,154.17,154.16,3.2428]
[1724767164285,11.75240774,154.17,154.16,3.2428]
[1724767167687,6.48624536,154.17,154.16,3.2428]
[1724767168181,11.75336604,154.17,154.16,3.2428]
[1724767169585,0.04898783,154.18,154.17,3.2426]
[1724767169786,4.5314,154.24,154.17,24.88]
[1724767169989,6.36221863,154.23,154.17,24.88]
[1724767170189,6.36221863,154.23,154.2,28.1218]
[1724767170497,24.88,154.3,154.22,24.88]
[1724767170796,6.4066176,154.26,154.23,0.04418844]
[1724767170979,0.0451872,154.26,154.24,3.23270088]
[1724767171183,6.4066176,154.26,154.24,3.23270088]
[1724767171484,0.0451872,154.26,154.24,3.23270088]
[1724767172594,0.0451872,154.26,154.24,6.47380088]
[1724767173492,0.0451872,154.26,154.25,3.241]
[1724767173697,0.0451872,154.26,154.24,3.23270088]
[1724767174386,0.0451872,154.26,154.24,6.47370088]
[1724767174590,0.0451872,154.26,154.23,0.04418844]
[1724767174892,0.0451872,154.26,154.23,3.28548844]
[1724767175285,0.0451872,154.26,154.23,0.04418844]
[1724767175784,6.40604841,154.26,154.23,0.04418844]
[1724767175985,6.36086121,154.25,154.23,0.04418844]
[1724767176190,0.0451872,154.26,154.23,0.04418844]
[1724767176382,3.2411,154.25,154.23,0.04418844]
[1724767176581,0.0451872,154.26,154.23,0.04418844]
[1724767176886,3.2859872,154.26,154.23,0.04418844]
[1724767177191,6.36129789,154.25,154.23,0.04418844]
[1724767177691,0.0451872,154.26,154.23,0.04418844]
[1724767178390,0.0451872,154.26,154.23,3.28548844]
[1724767178790,6.40618977,154.26,154.23,0.04418844]
[1724767178993,0.0451872,154.26,154.23,0.04418844]
[1724767179387,0.0451872,154.26,154.24,3.2412]
[1724767179990,6.40590268,154.26,154.24,3.2412]
[1724767180187,0.0451872,154.26,154.24,3.2412]
[1724767180386,0.0451872,154.26,154.23,3.28548844]
[1724767180587,6.40593722,154.26,154.23,3.28548844]
[1724767180783,0.0451872,154.26,154.23,3.28548844]
[1724767180986,6.40593722,154.26,154.23,3.28548844]
[1724767181392,6.36075002,154.25,154.23,3.28548844]
[1724767181591,6.40593722,154.26,154.23,0.04418844]
[1724767181787,0.0451872,154.26,154.23,0.04418844]
[1724767181994,24.9251872,154.26,154.23,0.04418844]
[1724767182189,6.36113928,154.25,154.19,3.2421]
[1724767182390,6.36113928,154.24,154.17,4.68]
[1724767182593,6.36113928,154.23,154.17,4.68]
[1724767182794,6.36113928,154.22,154.17,4.68]
[1724767183091,11.61949346,154.21,154.18,3.2424]
[1724767183293,5.25835418,154.2,154.18,3.28727606]
[1724767183491,5.25835418,154.19,154.18,3.28727606]
[1724767184491,5.25835418,154.19,154.18,0.04487606]
[1724767187400,0.04135541,154.21,154.18,0.04487606]
[1724767187897,3.28315541,154.21,154.18,0.04487606]
[1724767188090,5.25876822,154.2,154.18,0.04487606]
[1724767188293,5.25876822,154.19,154.18,0.04487606]
[1724767191101,5.25876822,154.19,154.18,3.28727606]
[1724767191504,5.25876822,154.19,154.18,0.04487606]
[1724767194295,5.25859637,154.19,154.18,0.04487606]
[1724767195106,11.74445675,154.19,154.18,0.04487606]
[1724767196904,11.74445675,154.19,154.18,3.28727606]
[1724767197609,5.25859637,154.19,154.18,3.28727606]
[1724767197912,11.74445668,154.19,154.18,3.28727606]
[1724767198107,10.51719433,154.19,154.18,3.28727606]
[1724767198304,17.00305464,154.19,154.18,3.28727606]
[1724767198604,11.74445827,154.19,154.18,3.28727606]
[1724767199004,5.25858789,154.19,154.18,3.28727606]
[1724767199213,11.74443478,154.19,154.18,3.28727606]
[1724767200303,11.74443478,154.19,154.18,13.24727606]
[1724767200508,22.69270123,154.32,154.2,3.242]
[1724767200715,22.69270123,154.32,154.18,49.84487606]
[1724767200716,25.19660123,154.32,154.28,9.96]
[1724767201011,9.96,154.3,154.23,9.96]
[1724767201214,14.90992295,154.31,154.23,9.96]
[1724767201215,9.96,154.29,154.23,9.96]
[1724767201406,11.61344047,154.28,154.24,9.96]
[1724767201711,6.36080455,154.27,154.24,10.00848835]
[1724767201906,5.25256549,154.26,154.24,0.04848835]
[1724767202108,0.0484648,154.28,154.25,9.96]
[1724767202501,0.0484648,154.28,154.24,0.04848835]
[1724767203606,0.0484648,154.28,154.27,9.96]
[1724767203808,0.0484648,154.28,154.24,0.04848835]
[1724767204007,0.0484648,154.28,154.25,9.96]
[1724767204306,0.0484648,154.28,154.25,13.2008]
[1724767204615,0.0484648,154.28,154.26,9.96]
[1724767204806,0.0484648,154.28,154.25,9.96]
[1724767205110,0.0484648,154.28,154.25,13.2008]
[1724767205318,0.0484648,154.28,154.26,9.96]
[1724767205610,0.0484648,154.28,154.26,13.2007]
[1724767206108,0.0484648,154.28,154.27,3.2405]
[1724767206308,0.0484648,154.28,154.27,28.1405]
[1724767210717,1.2331,154.36,154.3,3.2397]
[1724767211113,1.2331,154.36,154.34,3.239]
[1724767211415,1.2331,154.36,154.32,24.9]
[1724767211711,1.28093897,154.36,154.32,24.94677117]
[1724767211914,0.04783897,154.36,154.32,24.94677117]
[1724767212814,24.94783897,154.36,154.32,0.04677117]
[1724767213211,3.239,154.35,154.32,0.04677117]
[1724767213413,24.94783897,154.36,154.32,0.04677117]
[1724767213613,1.3151,154.34,154.32,0.04677117]
[1724767214217,4.5543,154.34,154.32,0.04677117]
[1724767215312,3.2393,154.33,154.32,0.04677117]
[1724767215618,26.2151,154.34,154.25,4.68]
[1724767215817,24.9,154.31,154.25,4.68]
[1724767216018,3.2399,154.3,154.27,3.2405]
[1724767216215,1.2904,154.32,154.25,29.58]
[1724767216413,1.2904,154.32,154.27,24.9]
[1724767216608,0.04704678,154.3,154.29,3.2401]
[1724767216812,0.04704678,154.3,154.27,0.04237541]
[1724767218023,3.28714678,154.3,154.27,0.04237541]
[1724767218214,0.04704678,154.3,154.27,0.04237541]
[1724767218913,0.04704678,154.3,154.2,7.8998906]
[1724767218914,24.9,154.29,154.2,7.8998906]
[1724767219107,24.9,154.27,154.2,4.68]
[1724767219311,3.22509858,154.31,154.18,2.6005]
[1724767219312,24.9,154.25,154.18,3.28579312]
[1724767219519,24.9,154.25,154.17,4.68]
[1724767219725,3.2414,154.23,154.19,3.2421]
[1724767219914,0.04084247,154.23,154.19,0.04225157]
[1724767220116,3.2418,154.22,154.19,0.04225157]
[1724767220920,26.26944247,154.23,154.19,0.04225157]
[1724767221221,24.9,154.21,154.13,24.9]
[1724767221609,24.9,154.21,154.11,24.9]
[1724767221808,24.9,154.21,154.1,1.241]
[1724767222020,24.9,154.21,154.11,24.9]
[1724767222220,24.9,154.21,154.14,0.04512959]
[1724767222221,0.04666187,154.18,154.14,0.04512959]
[1724767222818,0.04666187,154.18,154.15,3.20284918]
[1724767223217,0.04666187,154.18,154.14,0.04512959]
[1724767223423,0.04666187,154.18,154.15,3.243]
[1724767224225,0.04666187,154.18,154.14,3.28832959]
[1724767224425,0.04666187,154.18,154.14,0.04512959]
[1724767225423,0.04666187,154.18,154.14,3.28832959]
[1724767225924,0.04666187,154.18,154.14,0.04512959]
[1724767226629,0.04666187,154.18,154.15,3.243]
[1724767226929,0.04666187,154.18,154.14,0.04512959]
[1724767227419,3.28926187,154.18,154.14,0.04512959]
[1724767227822,0.04666187,154.18,154.14,0.04512959]
[1724767228420,0.04666187,154.18,154.15,3.2429]
[1724767228822,0.04666187,154.18,154.17,3.2426]
[1724767229223,0.04666187,154.18,154.17,28.1426]
[1724767229724,1.2795,154.24,154.19,24.9]
[1724767230028,1.2795,154.24,154.17,24.9]
[1724767230629,0.04522074,154.22,154.19,3.28526579]
[1724767233225,0.04522074,154.22,154.19,0.04316579]
[1724767234434,0.04522074,154.22,154.19,3.28536579]
[1724767234729,0.04522074,154.22,154.19,0.04316579]
[1724767234930,0.04522074,154.22,154.2,3.2419]
[1724767235134,0.04522074,154.22,154.19,0.04316579]
[1724767235528,0.04522074,154.22,154.21,3.2418]
[1724767236238,2.5815,154.3,154.2,24.9]
[1724767236532,2.5815,154.3,154.24,24.9]
[1724767236736,5.8215,154.3,154.26,3.2407]
[1724767236933,2.5815,154.3,154.24,28.21180913]
[1724767237138,0.04729415,154.29,154.26,3.2407]
[1724767238531,0.04729415,154.29,154.25,0.04966212]
[1724767238737,24.9,154.28,154.25,0.04966212]
[1724767239037,24.9,154.26,154.25,0.04966212]
[1724767239235,24.9,154.26,154.2,3.2419]
[1724767239427,24.9,154.24,154.13,24.9]
[1724767239627,24.9,154.24,154.14,4.68]
[1724767239832,24.9,154.22,154.15,3.2444081]
[1724767240033,31.14,154.23,154.14,4.68]
[1724767240230,31.14,154.23,154.18,3.2422]
[1724767240231,0.04587155,154.2,154.18,3.2422]
[1724767240625,0.04587155,154.2,154.17,0.04241981]
[1724767243741,1.26247155,154.2,154.17,0.04241981]
[1724767243936,3.2422,154.19,154.17,0.04241981]
[1724767244333,2.57497155,154.2,154.17,0.04241981]
[1724767244844,31.14,154.19,154.12,3.2437]
[1724767245033,31.14,154.17,154.07,3.22999338]
[1724767245337,31.14,154.17,154.05,33.7868]
[1724767245338,31.14,154.17,154.06,4.68]
[1724767245534,31.14,154.17,154.06,7.95612398]
[1724767245734,1.3022,154.18,154.04,1.2913]
[1724767245735,31.14,154.14,154.04,1.2913]
[1724767245934,0.04140586,154.11,154.07,0.04921171]
[1724767246436,0.04140586,154.11,154.08,3.2445]
[1724767246842,0.04140586,154.11,154.07,0.04921171]
[1724767247348,3.1655252,154.1,154.07,0.04921171]
[1724767247536,1.3022,154.09,154.07,0.04921171]
[1724767248041,0.04140586,154.11,154.07,0.04921171]
[1724767250435,0.04140586,154.11,154.08,3.2445]
[1724767250641,0.04140586,154.11,154.07,0.04921171]
[1724767250943,0.04140586,154.11,154.08,3.2444]
[1724767252039,0.04140586,154.11,154.07,0.04921171]
[1724767252438,0.04140586,154.11,154.09,3.2441]
[1724767253148,0.04140586,154.11,154.07,0.04921171]
[1724767253149,0.04140586,154.11,154.1,3.2441]
[1724767254042,31.14,154.21,154.09,31.14]
[1724767254246,31.14,154.23,154.11,31.14]
[1724767254452,4.68,154.23,154.14,31.14]
[1724767254644,3.2417,154.22,154.16,3.2428]
[1724767255041,0.04661694,154.21,154.17,0.04343914]
[1724767255349,0.04661694,154.21,154.19,31.14]
[1724767255642,31.14,154.28,154.17,0.04343914]
[1724767255846,35.82,154.28,154.16,35.82]
[1724767256242,3.241,154.25,154.16,35.82]
[1724767256443,0.04402326,154.22,154.19,0.04567167]
[1724767257339,31.14,154.21,154.19,0.04567167]
[1724767257549,3.242,154.2,154.19,0.04567167]
[1724767257844,34.3363591,154.21,154.14,3.2432]
[1724767258042,34.3363591,154.21,154.11,7.89695658]
[1724767258043,34.3826,154.18,154.12,3.2435]
[1724767258248,34.3826,154.18,154.11,4.68]
[1724767258747,0.04451657,154.16,154.13,0.04148778]
[1724767259350,0.04451657,154.16,154.13,3.28488778]
[1724767259549,0.04451657,154.16,154.13,0.04148778]
[1724767263359,0.04451657,154.16,154.15,3.2431]
[1724767263949,3.2416,154.22,154.17,3.2425]
[1724767264145,3.9985,154.24,154.14,31.14]
[1724767264350,3.9985,154.24,154.15,4.68]
[1724767264547,3.2416,154.22,154.17,3.2425]
[1724767265052,3.28601555,154.21,154.18,0.04412223]
[1724767265356,0.04421555,154.21,154.18,0.04412223]
[1724767265751,3.2421,154.2,154.18,0.04412223]
[1724767266353,0.04421555,154.21,154.18,0.04412223]
[1724767266648,3.28601555,154.21,154.18,0.04412223]
[1724767266848,31.14,154.2,154.18,0.04412223]
[1724767267050,31.14,154.2,154.1,4.68]
[1724767267252,31.14,154.2,154.14,3.2431]
[1724767267756,3.2425,154.18,154.14,3.2431]
[1724767268255,3.29185352,154.18,154.14,3.28685788]
[1724767269157,0.04935352,154.18,154.14,0.04375788]
[1724767270253,31.14,154.17,154.14,0.04375788]
[1724767270457,3.2428,154.16,154.14,0.04375788]
[1724767270961,32.3696,154.17,154.11,3.2439]
[1724767271260,33.693,154.17,154.11,3.2439]
[1724767271557,31.14,154.15,154.09,3.2443]
[1724767271759,31.14,154.15,154.06,4.68]
[1724767271958,0.0420532,154.12,154.09,0.04380651]
[1724767273452,3.244,154.11,154.09,0.04380651]
[1724767273653,31.14,154.11,154.09,0.04380651]
[1724767273854,3.2441,154.1,154.09,0.04380651]
[1724767274049,0.0420532,154.12,154.09,0.04380651]
[1724767274551,0.0420532,154.12,154.1,3.2441]
[1724767274756,0.0420532,154.12,154.09,0.04380651]
[1724767275159,0.0420532,154.12,154.1,3.2441]
[1724767275459,0.0420532,154.12,154.09,0.04380651]
[1724767275662,0.0420532,154.12,154.11,3.2439]
[1724767275861,0.0420532,154.12,154.09,0.04380651]
[1724767277655,3.2859532,154.12,154.09,0.04380651]
[1724767277852,0.0420532,154.12,154.09,0.04380651]
[1724767278254,0.0420532,154.12,154.0,1.255]
[1724767278255,31.14,154.1,154.0,1.255]
[1724767278463,31.14,154.1,154.01,4.68]
[1724767279258,31.14,154.1,154.01,7.87739614]
[1724767279566,0.04953708,154.07,154.04,0.04578957]
[1724767280862,0.04953708,154.07,154.05,3.245]
[1724767281257,0.04953708,154.07,154.06,3.245]
[1724767281455,0.04953708,154.07,154.04,0.04578957]
[1724767282269,0.04953708,154.07,154.05,3.245]
[1724767282461,0.04953708,154.07,154.04,0.04578957]
[1724767283065,0.04953708,154.07,154.06,3.245]
[1724767284469,0.04953708,154.07,154.05,3.2451]
[1724767285073,0.04953708,154.07,154.06,3.245]
[1724767285368,0.04953708,154.07,154.04,0.04578957]
[1724767285566,0.04953708,154.07,154.06,3.245]
[1724767287272,0.04953708,154.07,154.04,3.29098957]
[1724767288781,0.04953708,154.07,154.04,0.04578957]
[1724767289177,3.29443708,154.07,154.04,0.04578957]
[1724767289878,0.04953708,154.07,154.04,0.04578957]
[1724767290466,0.04953708,154.07,154.04,3.29118957]
[1724767290879,3.29433708,154.07,154.04,0.04578957]
[1724767291268,0.04953708,154.07,154.04,0.04578957]
[1724767292278,3.29433708,154.07,154.04,3.29118957]
[1724767293379,0.04953708,154.07,154.04,0.04578957]
[1724767294178,0.04953708,154.07,154.06,3.245]
[1724767295791,31.14,154.17,154.07,3.32412873]
[1724767296096,2.596,154.18,154.07,3.32412873]
[1724767296388,1.3181,154.18,154.08,31.14]
[1724767296693,0.04407765,154.15,154.12,3.2436]
[1724767296891,0.04407765,154.15,154.12,6.5050161]
[1724767297287,0.04407765,154.15,154.12,3.2436]
[1724767297587,0.04407765,154.15,154.14,3.2433]
[1724767299685,34.3816,154.22,154.13,3.22638547]
[1724767299686,2.5759,154.23,154.18,3.2424]
[1724767300604,5.8174,154.23,154.18,3.2424]
[1724767300894,0.04098928,154.22,154.19,0.04505358]
[1724767301494,31.18098928,154.22,154.19,0.04505358]
[1724767301695,31.18098928,154.22,154.2,3.2419]
[1724767301995,31.18098928,154.22,154.19,0.04505358]
[1724767303493,3.2419,154.21,154.19,0.04505358]
[1724767303694,31.14,154.2,154.19,0.04505358]
[1724767303895,31.14,154.2,154.12,4.68]
[1724767304090,31.14,154.17,154.14,3.2431]
[1724767304696,31.14,154.17,154.1,7.91312025]
[1724767304888,0.0470843,154.15,154.12,0.04246444]
[1724767305287,34.4301843,154.15,154.12,0.04246444]
[1724767305694,31.14,154.13,154.12,0.04246444]
[1724767305896,1.2725,154.14,154.12,0.04246444]
[1724767306889,4.5159,154.14,154.12,0.04246444]
[1724767307097,1.2725,154.14,154.12,0.04246444]
[1724767307695,4.5159,154.14,154.12,0.04246444]
[1724767307897,1.2725,154.14,154.12,0.04246444]
[1724767308096,3.2435,154.13,154.12,0.04246444]
[1724767308297,34.3835,154.13,154.12,0.04246444]
[1724767308503,31.14,154.13,154.09,3.2443]
[1724767308891,3.2439,154.12,154.04,67.90973654]
[1724767309096,31.14,154.13,154.04,67.90973654]
[1724767309297,3.2439,154.12,154.03,4.68]
[1724767309601,2.5832,154.14,154.06,0.04184928]
[1724767309602,0.04199447,154.09,154.06,0.04184928]
[1724767309797,3.28649447,154.09,154.06,0.04184928]
[1724767310198,0.04199447,154.09,154.06,0.04184928]
[1724767311093,0.04199447,154.09,154.08,3.2445]
[1724767314004,32.4091,154.17,154.11,3.2438]
[1724767314795,3.243,154.16,154.11,3.2438]